[Event "Late-Titled-Tuesday-Blitz-January-16-2024"]
[Site "Chess.com"]
[Date "2024.01.16"]
[Round "9"]
[White "IranianCheetah"]
[Black "TheMagician"]
[Result "1-0"]
[WhiteElo "2365"]
[BlackElo "2170"]
[TimeControl "180+1"]
[EndTime "15:47:12 PST"]
[Termination "IranianCheetah won by checkmate"]

1. e4 {[%clk 0:02:41]} 1... d5 {[%clk 0:02:58.9]} 2. exd5 {[%clk 0:02:40.9]}
2... Qxd5 {[%clk 0:02:57.8]} 3. Nc3 {[%clk 0:02:40.9]} 3... Qd8 {[%clk
0:02:57.4]} 4. d4 {[%clk 0:02:41.3]} 4... Nf6 {[%clk 0:02:57.1]} 5. Nf3 {[%clk
0:02:42.2]} 5... Bg4 {[%clk 0:02:56.2]} 6. h3 {[%clk 0:02:41.9]} 6... Bxf3
{[%clk 0:02:54.6]} 7. Qxf3 {[%clk 0:02:42.8]} 7... c6 {[%clk 0:02:54.6]} 8. Be3
{[%clk 0:02:32.7]} 8... Nd5 {[%clk 0:02:54.2]} 9. Nxd5 {[%clk 0:02:30.1]} 9...
cxd5 {[%clk 0:02:49.8]} 10. c4 {[%clk 0:02:18]} 10... e6 {[%clk 0:02:46.6]} 11.
cxd5 {[%clk 0:02:06.5]} 11... Qxd5 {[%clk 0:02:42]} 12. Qxd5 {[%clk 0:02:04]}
12... Bb4+ {[%clk 0:02:40.1]} 13. Bd2 {[%clk 0:01:36.1]} 13... Bxd2+ {[%clk
0:02:38.9]} 14. Kxd2 {[%clk 0:01:37]} 14... exd5 {[%clk 0:02:39.2]} 15. Bb5+
{[%clk 0:01:37]} 15... Ke7 {[%clk 0:02:35.8]} 16. Rac1 {[%clk 0:01:34.4]} 16...
Kd6 {[%clk 0:02:35.6]} 17. Rc3 {[%clk 0:01:29.9]} 17... Nc6 {[%clk 0:02:35.5]}
18. Bxc6 {[%clk 0:01:23.5]} 18... bxc6 {[%clk 0:02:35.4]} 19. Rhc1 {[%clk
0:01:24.4]} 19... Rac8 {[%clk 0:02:33.1]} 20. Ra3 {[%clk 0:01:22.5]} 20... Rc7
{[%clk 0:02:33.2]} 21. Rc5 {[%clk 0:01:20.7]} 21... Rb8 {[%clk 0:02:31.7]} 22.
b3 {[%clk 0:01:07.1]} 22... Re8 {[%clk 0:02:19.5]} 23. Ra6 {[%clk 0:01:01.5]}
23... Re4 {[%clk 0:02:14.5]} 24. Kd3 {[%clk 0:01:01.5]} 24... Re1 {[%clk
0:02:14.3]} 25. Rca5 {[%clk 0:00:55.5]} 25... Rd1+ {[%clk 0:01:52.7]} 26. Kc3
{[%clk 0:00:52.8]} 26... Rf1 {[%clk 0:01:40.9]} 27. f3 {[%clk 0:00:48.3]} 27...
Rf2 {[%clk 0:01:38.3]} 28. Rxa7 {[%clk 0:00:48]} 28... Rxg2 {[%clk 0:01:23.9]}
29. a4 {[%clk 0:00:45.6]} 29... f5 {[%clk 0:01:17.5]} 30. Rxc7 {[%clk
0:00:36.2]} 30... Kxc7 {[%clk 0:01:17]} 31. Ra7+ {[%clk 0:00:37.1]} 31... Kb6
{[%clk 0:01:17.2]} 32. Rf7 {[%clk 0:00:35.6]} 32... g6 {[%clk 0:01:16.6]} 33.
Rxh7 {[%clk 0:00:34.7]} 33... Rg3 {[%clk 0:01:16.9]} 34. Kb4 {[%clk 0:00:30.7]}
34... Rxf3 {[%clk 0:01:13.6]} 35. a5+ {[%clk 0:00:30.6]} 35... Ka6 {[%clk
0:01:12.9]} 36. Rc7 {[%clk 0:00:30.4]} 36... Rxh3 {[%clk 0:01:06.6]} 37. Rxc6+
{[%clk 0:00:30.5]} 37... Ka7 {[%clk 0:01:06.6]} 38. Rxg6 {[%clk 0:00:28.3]}
38... f4 {[%clk 0:01:05.5]} 39. Rf6 {[%clk 0:00:27.2]} 39... f3 {[%clk
0:01:01.6]} 40. Kb5 {[%clk 0:00:27.7]} 40... f2 {[%clk 0:00:55.7]} 41. Rf7+
{[%clk 0:00:26.2]} 41... Ka8 {[%clk 0:00:54.4]} 42. b4 {[%clk 0:00:20.7]} 42...
Rh2 {[%clk 0:00:45.8]} 43. a6 {[%clk 0:00:15.5]} 43... Kb8 {[%clk 0:00:40.9]}
44. Ka5 {[%clk 0:00:12.9]} 44... Rh4 {[%clk 0:00:34]} 45. Rxf2 {[%clk
0:00:08.6]} 45... Rxd4 {[%clk 0:00:34]} 46. b5 {[%clk 0:00:08.7]} 46... Re4
{[%clk 0:00:27.3]} 47. Rf8+ {[%clk 0:00:07.7]} 47... Kc7 {[%clk 0:00:26.6]} 48.
a7 {[%clk 0:00:06.3]} 48... Kd6 {[%clk 0:00:22.1]} 49. a8=Q {[%clk 0:00:06.4]}
49... Kc5 {[%clk 0:00:23]} 50. Qc8+ {[%clk 0:00:05.8]} 50... Kd4 {[%clk
0:00:23.9]} 51. Re8 {[%clk 0:00:04.7]} 51... Kd3 {[%clk 0:00:24.8]} 52. Rxe4
{[%clk 0:00:04.5]} 52... dxe4 {[%clk 0:00:24.7]} 53. Kb4 {[%clk 0:00:05.2]}
53... e3 {[%clk 0:00:25.6]} 54. Qc4+ {[%clk 0:00:05.1]} 54... Kd2 {[%clk
0:00:25.7]} 55. Qc3+ {[%clk 0:00:05.2]} 55... Ke2 {[%clk 0:00:24.9]} 56. Kc4
{[%clk 0:00:05.1]} 56... Kf2 {[%clk 0:00:25.4]} 57. Kd3 {[%clk 0:00:04.5]} 57...
e2 {[%clk 0:00:25.7]} 58. Qc2 {[%clk 0:00:04.9]} 58... Kf3 {[%clk 0:00:25.2]}
59. Qxe2+ {[%clk 0:00:05.3]} 59... Kf4 {[%clk 0:00:26.1]} 60. Qe4+ {[%clk
0:00:05.8]} 60... Kg5 {[%clk 0:00:25.5]} 61. Qf3 {[%clk 0:00:06.3]} 61... Kg6
{[%clk 0:00:25.5]} 62. Ke4 {[%clk 0:00:07.2]} 62... Kg5 {[%clk 0:00:26]} 63.
Qf5+ {[%clk 0:00:07.6]} 63... Kh4 {[%clk 0:00:26.5]} 64. Qg6 {[%clk 0:00:07.9]}
64... Kh3 {[%clk 0:00:26.3]} 65. Kf3 {[%clk 0:00:08.8]} 65... Kh2 {[%clk
0:00:27.2]} 66. Qg2# {[%clk 0:00:08.3]} 1-0

[Event "Late-Titled-Tuesday-Blitz-January-16-2024"]
[Site "Chess.com"]
[Date "2024.01.16"]
[Round "9"]
[White "Walter_White_Poland"]
[Black "StellarChess"]
[Result "1-0"]
[WhiteElo "2351"]
[BlackElo "2547"]
[TimeControl "180+1"]
[EndTime "15:47:14 PST"]
[Termination "Walter_White_Poland won by resignation"]

1. e4 {[%clk 0:03:00.9]} 1... Nc6 {[%clk 0:02:58.2]} 2. Nf3 {[%clk 0:02:59.9]}
2... e5 {[%clk 0:02:58.4]} 3. Bb5 {[%clk 0:02:59.3]} 3... Nf6 {[%clk 0:02:58.5]}
4. O-O {[%clk 0:02:57.9]} 4... Nxe4 {[%clk 0:02:59]} 5. d4 {[%clk 0:02:58.1]}
5... Nd6 {[%clk 0:02:58.7]} 6. Bg5 {[%clk 0:02:58]} 6... f6 {[%clk 0:02:51.9]}
7. dxe5 {[%clk 0:02:57.3]} 7... Nxb5 {[%clk 0:02:43.6]} 8. exf6 {[%clk
0:02:56.9]} 8... gxf6 {[%clk 0:02:39.9]} 9. Bf4 {[%clk 0:02:56.8]} 9... Be7
{[%clk 0:02:30.6]} 10. Re1 {[%clk 0:02:48.1]} 10... Nd6 {[%clk 0:02:21.8]} 11.
Bxd6 {[%clk 0:02:37]} 11... cxd6 {[%clk 0:02:21.3]} 12. Nh4 {[%clk 0:02:34.3]}
12... O-O {[%clk 0:02:15]} 13. Nf5 {[%clk 0:02:33.8]} 13... Kh8 {[%clk 0:02:11]}
14. Nc3 {[%clk 0:02:33.6]} 14... Rf7 {[%clk 0:02:01.3]} 15. Qh5 {[%clk 0:02:13]}
15... Qf8 {[%clk 0:01:50.8]} 16. Nd5 {[%clk 0:02:00.6]} 16... b6 {[%clk
0:01:51.1]} 17. Re3 {[%clk 0:01:17.5]} 17... Ba6 {[%clk 0:01:42.6]} 18. Rae1
{[%clk 0:01:16.9]} 18... Bc4 {[%clk 0:01:19.3]} 19. Ndxe7 {[%clk 0:01:11.5]}
19... Nxe7 {[%clk 0:01:18.9]} 20. Rxe7 {[%clk 0:00:45.7]} 20... Qg8 {[%clk
0:00:25.5]} 21. Nxd6 {[%clk 0:00:31.7]} 21... Rxe7 {[%clk 0:00:21.2]} 22. Rxe7
{[%clk 0:00:30.9]} 22... Be6 {[%clk 0:00:21.5]} 23. Nf7+ {[%clk 0:00:19.5]}
23... Bxf7 {[%clk 0:00:19.6]} 24. Qxf7 {[%clk 0:00:20.4]} 24... Qxf7 {[%clk
0:00:18.8]} 25. Rxf7 {[%clk 0:00:21.3]} 25... Re8 {[%clk 0:00:19.3]} 26. g4
{[%clk 0:00:20.4]} 26... Re2 {[%clk 0:00:19.3]} 27. Rxd7 {[%clk 0:00:16.7]}
27... Rxc2 {[%clk 0:00:19.7]} 28. Rxa7 {[%clk 0:00:16.2]} 28... Rxb2 {[%clk
0:00:20.2]} 29. Kg2 {[%clk 0:00:16.2]} 29... Rb4 {[%clk 0:00:20.3]} 30. Kg3
{[%clk 0:00:16]} 30... Kg8 {[%clk 0:00:21.2]} 31. h4 {[%clk 0:00:16.1]} 31... h6
{[%clk 0:00:19.9]} 32. h5 {[%clk 0:00:15.9]} 32... Rc4 {[%clk 0:00:18.1]} 33. f3
{[%clk 0:00:15.8]} 33... Rc2 {[%clk 0:00:18.1]} 34. a4 {[%clk 0:00:14.5]} 34...
Rc5 {[%clk 0:00:17.6]} 35. Kf4 {[%clk 0:00:13.9]} 35... Rd5 {[%clk 0:00:16.1]}
36. Rb7 {[%clk 0:00:11.6]} 36... Ra5 {[%clk 0:00:13.4]} 37. Rxb6 {[%clk
0:00:11.2]} 37... Rxa4+ {[%clk 0:00:12.8]} 38. Kf5 {[%clk 0:00:11.2]} 38... Kg7
{[%clk 0:00:13.4]} 39. Rb7+ {[%clk 0:00:10.6]} 39... Kf8 {[%clk 0:00:13.3]} 40.
Kxf6 {[%clk 0:00:06.7]} 40... Rf4+ {[%clk 0:00:13.2]} 41. Kg6 {[%clk 0:00:07]}
41... Rxf3 {[%clk 0:00:13.7]} 42. Kxh6 {[%clk 0:00:07.3]} 42... Rf6+ {[%clk
0:00:13.6]} 43. Kg5 {[%clk 0:00:07.6]} 43... Ra6 {[%clk 0:00:14.5]} 44. Kh4
{[%clk 0:00:06.5]} 44... Kg8 {[%clk 0:00:15.4]} 45. Kg5 {[%clk 0:00:05.3]} 45...
Kh8 {[%clk 0:00:15.1]} 46. Kh4 {[%clk 0:00:04.8]} 46... Kg8 {[%clk 0:00:16]} 47.
g5 {[%clk 0:00:04.8]} 47... Kh8 {[%clk 0:00:16.2]} 48. h6 {[%clk 0:00:04.7]}
48... Kg8 {[%clk 0:00:14.7]} 49. Kh5 {[%clk 0:00:05]} 49... Ra1 {[%clk
0:00:15.3]} 50. g6 {[%clk 0:00:04.8]} 50... Ra5+ {[%clk 0:00:14.9]} 51. Kg4
{[%clk 0:00:04.7]} 51... Ra4+ {[%clk 0:00:15.2]} 52. Kf5 {[%clk 0:00:04.7]}
52... Ra5+ {[%clk 0:00:16.1]} 53. Kf4 {[%clk 0:00:05]} 53... Ra4+ {[%clk
0:00:16.6]} 54. Ke5 {[%clk 0:00:05.2]} 54... Ra5+ {[%clk 0:00:17.1]} 55. Kf6
{[%clk 0:00:05.4]} 55... Ra6+ {[%clk 0:00:17.6]} 56. Kf5 {[%clk 0:00:05.3]}
56... Ra5+ {[%clk 0:00:18.2]} 57. Ke4 {[%clk 0:00:05.6]} 57... Ra4+ {[%clk
0:00:18.9]} 58. Kd3 {[%clk 0:00:05.4]} 58... Ra3+ {[%clk 0:00:19.6]} 59. Kd4
{[%clk 0:00:05.6]} 59... Ra4+ {[%clk 0:00:20.1]} 60. Kc5 {[%clk 0:00:05.7]}
60... Ra5+ {[%clk 0:00:20.8]} 61. Kc6 {[%clk 0:00:05.4]} 61... Ra6+ {[%clk
0:00:20.9]} 62. Rb6 {[%clk 0:00:04.8]} 62... Ra8 {[%clk 0:00:19.2]} 63. Kc7
{[%clk 0:00:05]} 63... Rf8 {[%clk 0:00:18.9]} 64. Rb8 {[%clk 0:00:05]} 64...
Rxb8 {[%clk 0:00:18.6]} 65. Kxb8 {[%clk 0:00:05.9]} 65... Kf8 {[%clk 0:00:19.5]}
66. Kc7 {[%clk 0:00:06.2]} 66... Kg8 {[%clk 0:00:19.9]} 67. Kd6 {[%clk
0:00:06.2]} 67... Kh8 {[%clk 0:00:20.8]} 68. Ke6 {[%clk 0:00:06.6]} 68... Kg8
{[%clk 0:00:21.7]} 69. Kf6 {[%clk 0:00:06.9]} 69... Kh8 {[%clk 0:00:22.6]} 70.
Ke7 {[%clk 0:00:07]} 70... Kg8 {[%clk 0:00:23.1]} 71. g7 {[%clk 0:00:07.1]}
71... Kh7 {[%clk 0:00:23.5]} 72. Kf7 {[%clk 0:00:07.5]} 72... Kxh6 {[%clk
0:00:23.5]} 73. g8=Q {[%clk 0:00:08.4]} 1-0

[Event "Late-Titled-Tuesday-Blitz-January-16-2024"]
[Site "Chess.com"]
[Date "2024.01.16"]
[Round "9"]
[White "TangerineandLemon25"]
[Black "dretch"]
[Result "0-1"]
[WhiteElo "2619"]
[BlackElo "2792"]
[TimeControl "180+1"]
[EndTime "15:47:16 PST"]
[Termination "dretch won by resignation"]

1. e4 {[%clk 0:03:00.9]} 1... h5 {[%clk 0:02:57.4]} 2. d4 {[%clk 0:03:00.1]}
2... g6 {[%clk 0:02:56]} 3. Nf3 {[%clk 0:02:59.3]} 3... Bg7 {[%clk 0:02:56.3]}
4. Bd3 {[%clk 0:02:58.7]} 4... c5 {[%clk 0:02:54.8]} 5. c3 {[%clk 0:02:56.4]}
5... d6 {[%clk 0:02:51.9]} 6. O-O {[%clk 0:02:55.3]} 6... Bg4 {[%clk 0:02:51]}
7. Be3 {[%clk 0:02:47.9]} 7... cxd4 {[%clk 0:02:47.6]} 8. cxd4 {[%clk
0:02:48.8]} 8... Nc6 {[%clk 0:02:47.7]} 9. Bb5 {[%clk 0:02:40.4]} 9... a6 {[%clk
0:02:33.7]} 10. Be2 {[%clk 0:02:33.4]} 10... Nf6 {[%clk 0:02:22.8]} 11. Nc3
{[%clk 0:02:28.4]} 11... O-O {[%clk 0:02:18.7]} 12. Qd2 {[%clk 0:02:25.8]} 12...
d5 {[%clk 0:01:56.2]} 13. exd5 {[%clk 0:02:21]} 13... Nxd5 {[%clk 0:01:55.3]}
14. h3 {[%clk 0:02:21.4]} 14... Bf5 {[%clk 0:01:51.5]} 15. Bh6 {[%clk
0:02:09.8]} 15... Qd6 {[%clk 0:01:38.4]} 16. Bxg7 {[%clk 0:02:00.4]} 16... Kxg7
{[%clk 0:01:36.8]} 17. Rad1 {[%clk 0:01:47]} 17... Rad8 {[%clk 0:01:32.1]} 18.
Rfe1 {[%clk 0:01:40.1]} 18... Rfe8 {[%clk 0:01:21.4]} 19. Bc4 {[%clk 0:01:33]}
19... Nxc3 {[%clk 0:01:01.3]} 20. bxc3 {[%clk 0:01:31.5]} 20... e5 {[%clk
0:01:00.6]} 21. Qb2 {[%clk 0:01:03.5]} 21... b5 {[%clk 0:00:50.1]} 22. Bb3
{[%clk 0:00:56]} 22... Qf6 {[%clk 0:00:37.5]} 23. d5 {[%clk 0:00:44.4]} 23...
Na5 {[%clk 0:00:36.7]} 24. Qa3 {[%clk 0:00:44]} 24... Nxb3 {[%clk 0:00:32.6]}
25. axb3 {[%clk 0:00:44.9]} 25... Bxh3 {[%clk 0:00:32.2]} 26. Nh2 {[%clk
0:00:32.9]} 26... Qg5 {[%clk 0:00:27]} 27. g3 {[%clk 0:00:32.6]} 27... e4 {[%clk
0:00:25.4]} 28. Qxa6 {[%clk 0:00:28.9]} 28... h4 {[%clk 0:00:22]} 29. Re3 {[%clk
0:00:16.5]} 29... Rxd5 {[%clk 0:00:20.6]} 30. Rde1 {[%clk 0:00:14.5]} 30... Rd2
{[%clk 0:00:19.3]} 31. Qa1 {[%clk 0:00:14.4]} 31... Qf6 {[%clk 0:00:17.5]} 32.
c4 {[%clk 0:00:14]} 32... Qxa1 {[%clk 0:00:14.9]} 33. Rxa1 {[%clk 0:00:14.9]}
33... bxc4 {[%clk 0:00:11.2]} 34. bxc4 {[%clk 0:00:12.2]} 34... hxg3 {[%clk
0:00:10.8]} 35. Rxg3 {[%clk 0:00:11]} 35... Be6 {[%clk 0:00:11]} 36. Rc3 {[%clk
0:00:10.9]} 36... Rc8 {[%clk 0:00:10.6]} 37. c5 {[%clk 0:00:10.9]} 37... Rd5
{[%clk 0:00:10.7]} 38. Rac1 {[%clk 0:00:11.3]} 38... Rg5+ {[%clk 0:00:10.6]} 39.
Kf1 {[%clk 0:00:11.8]} 39... Rh5 {[%clk 0:00:10.8]} 40. Kg2 {[%clk 0:00:11.6]}
40... Rch8 {[%clk 0:00:10.5]} 41. Nf1 {[%clk 0:00:11.3]} 41... Rg5+ {[%clk
0:00:07.7]} 42. Ng3 {[%clk 0:00:11.1]} 42... Bh3+ {[%clk 0:00:08]} 43. Kg1
{[%clk 0:00:11.1]} 43... Bg4 {[%clk 0:00:07.8]} 44. Kg2 {[%clk 0:00:08.6]} 44...
Bf3+ {[%clk 0:00:07.9]} 45. Rxf3 {[%clk 0:00:08.9]} 45... exf3+ {[%clk
0:00:08.8]} 46. Kxf3 {[%clk 0:00:09.4]} 46... Rc8 {[%clk 0:00:09.2]} 47. Ne4
{[%clk 0:00:09.4]} 47... Rf5+ {[%clk 0:00:09.1]} 48. Ke3 {[%clk 0:00:09.5]}
48... Re8 {[%clk 0:00:09.4]} 49. Kd4 {[%clk 0:00:09.6]} 49... Rf4 {[%clk
0:00:09.4]} 50. f3 {[%clk 0:00:08.2]} 50... f5 {[%clk 0:00:09.4]} 51. c6 {[%clk
0:00:08.8]} 51... fxe4 {[%clk 0:00:09.7]} 52. c7 {[%clk 0:00:09.7]} 52... exf3+
{[%clk 0:00:10]} 53. Kd5 {[%clk 0:00:10.6]} 53... Rff8 {[%clk 0:00:10.3]} 54.
Kd6 {[%clk 0:00:11.5]} 54... f2 {[%clk 0:00:10.2]} 55. Kd7 {[%clk 0:00:12.4]}
55... Rc8 {[%clk 0:00:09.6]} 56. Rf1 {[%clk 0:00:11.2]} 56... g5 {[%clk
0:00:09.8]} 57. Rc1 {[%clk 0:00:11.6]} 57... g4 {[%clk 0:00:09.8]} 58. Rc4
{[%clk 0:00:11.6]} 58... f1=Q {[%clk 0:00:09.5]} 59. Rxg4+ {[%clk 0:00:12.2]}
59... Kh6 {[%clk 0:00:10]} 60. Rh4+ {[%clk 0:00:12.5]} 60... Kg5 {[%clk
0:00:10.5]} 61. Rd4 {[%clk 0:00:13.2]} 61... Qf7+ {[%clk 0:00:08.9]} 62. Kc6
{[%clk 0:00:14.1]} 62... Qxc7+ {[%clk 0:00:09.1]} 63. Kd5 {[%clk 0:00:14.8]}
63... Rcd8+ {[%clk 0:00:07.9]} 64. Ke4 {[%clk 0:00:15.7]} 64... Rfe8+ {[%clk
0:00:08.4]} 65. Kd3 {[%clk 0:00:16.6]} 65... Rxd4+ {[%clk 0:00:08.7]} 66. Kxd4
{[%clk 0:00:17.3]} 66... Qd6+ {[%clk 0:00:09.2]} 67. Kc3 {[%clk 0:00:17.7]}
67... Rc8+ {[%clk 0:00:09.6]} 68. Kb3 {[%clk 0:00:18.2]} 68... Qb6+ {[%clk
0:00:09.9]} 0-1

[Event "Late-Titled-Tuesday-Blitz-January-16-2024"]
[Site "Chess.com"]
[Date "2024.01.16"]
[Round "9"]
[White "ChessRook_E"]
[Black "vova-79"]
[Result "1/2-1/2"]
[WhiteElo "2217"]
[BlackElo "2571"]
[TimeControl "180+1"]
[EndTime "15:47:19 PST"]
[Termination "Game drawn by repetition"]

1. g3 {[%clk 0:02:52.3]} 1... d5 {[%clk 0:02:42.4]} 2. Bg2 {[%clk 0:02:48.3]}
2... c6 {[%clk 0:02:42.4]} 3. c4 {[%clk 0:02:44.9]} 3... Nf6 {[%clk 0:02:41.7]}
4. cxd5 {[%clk 0:02:44.7]} 4... cxd5 {[%clk 0:02:38.2]} 5. d4 {[%clk 0:02:45.6]}
5... Nc6 {[%clk 0:02:37.1]} 6. Nc3 {[%clk 0:02:37.5]} 6... e6 {[%clk 0:02:36.6]}
7. Bg5 {[%clk 0:02:34.9]} 7... Qb6 {[%clk 0:02:32.1]} 8. Nf3 {[%clk 0:02:28.4]}
8... Qxb2 {[%clk 0:02:30.2]} 9. Bd2 {[%clk 0:02:18.8]} 9... Qb6 {[%clk
0:01:50.3]} 10. Rc1 {[%clk 0:02:11.8]} 10... Be7 {[%clk 0:01:36.3]} 11. O-O
{[%clk 0:02:10.6]} 11... O-O {[%clk 0:01:35.5]} 12. Bf4 {[%clk 0:02:10]} 12...
Qa5 {[%clk 0:01:27.2]} 13. Ne5 {[%clk 0:02:01.7]} 13... Bd7 {[%clk 0:01:26]} 14.
Nxd7 {[%clk 0:01:59.7]} 14... Nxd7 {[%clk 0:01:25.7]} 15. Qb3 {[%clk 0:01:55.2]}
15... Qa6 {[%clk 0:01:12.7]} 16. Rfd1 {[%clk 0:01:54.4]} 16... Rac8 {[%clk
0:01:01.7]} 17. e4 {[%clk 0:01:46.7]} 17... Ba3 {[%clk 0:00:52.3]} 18. Rb1
{[%clk 0:01:39.7]} 18... Nxd4 {[%clk 0:00:39.4]} 19. Rxd4 {[%clk 0:01:30.8]}
19... e5 {[%clk 0:00:38.5]} 20. Ra4 {[%clk 0:01:30.3]} 20... Rxc3 {[%clk
0:00:33.3]} 21. Rxa6 {[%clk 0:01:09]} 21... Rxb3 {[%clk 0:00:32.7]} 22. Rxb3
{[%clk 0:01:09.1]} 22... bxa6 {[%clk 0:00:32.7]} 23. Bxe5 {[%clk 0:00:56.7]}
23... Nxe5 {[%clk 0:00:32]} 24. Rxa3 {[%clk 0:00:56.7]} 24... dxe4 {[%clk
0:00:32.2]} 25. Bxe4 {[%clk 0:00:56.4]} 25... Re8 {[%clk 0:00:22.8]} 26. Rxa6
{[%clk 0:00:54.3]} 26... Re7 {[%clk 0:00:22.9]} 27. Kg2 {[%clk 0:00:52.9]} 27...
g6 {[%clk 0:00:22.7]} 28. h4 {[%clk 0:00:42.8]} 28... h6 {[%clk 0:00:21.8]} 29.
Bd5 {[%clk 0:00:41.9]} 29... Kg7 {[%clk 0:00:21.1]} 30. Bb3 {[%clk 0:00:39.7]}
30... Nd3 {[%clk 0:00:19.8]} 31. Rd6 {[%clk 0:00:38.1]} 31... Nc5 {[%clk
0:00:18.9]} 32. Bc4 {[%clk 0:00:37.6]} 32... Rd7 {[%clk 0:00:15.7]} 33. Rc6
{[%clk 0:00:36.6]} 33... Ne4 {[%clk 0:00:14.7]} 34. Bb3 {[%clk 0:00:29.8]} 34...
Nd6 {[%clk 0:00:10.9]} 35. Rc2 {[%clk 0:00:27.7]} 35... Ne8 {[%clk 0:00:09.4]}
36. Ba4 {[%clk 0:00:27.2]} 36... Re7 {[%clk 0:00:09.1]} 37. Rd2 {[%clk
0:00:27.1]} 37... Nf6 {[%clk 0:00:08.4]} 38. Bb3 {[%clk 0:00:26]} 38... Rd7
{[%clk 0:00:08]} 39. Re2 {[%clk 0:00:26.1]} 39... Rc7 {[%clk 0:00:07.9]} 40. Kh3
{[%clk 0:00:25.3]} 40... Rd7 {[%clk 0:00:07.2]} 41. Re3 {[%clk 0:00:22.3]} 41...
Rc7 {[%clk 0:00:07.4]} 42. Rf3 {[%clk 0:00:22.5]} 42... Rd7 {[%clk 0:00:07.4]}
43. g4 {[%clk 0:00:22.9]} 43... g5 {[%clk 0:00:07]} 44. hxg5 {[%clk 0:00:21.5]}
44... hxg5 {[%clk 0:00:07.9]} 45. Rf5 {[%clk 0:00:21]} 45... Nh7 {[%clk
0:00:07.6]} 46. f3 {[%clk 0:00:20]} 46... f6 {[%clk 0:00:07.3]} 47. Kg3 {[%clk
0:00:20.4]} 47... Nf8 {[%clk 0:00:07.5]} 48. Ba4 {[%clk 0:00:19.4]} 48... Re7
{[%clk 0:00:07.1]} 49. Bb3 {[%clk 0:00:19.7]} 49... Ng6 {[%clk 0:00:07.3]} 50.
Rc5 {[%clk 0:00:18.7]} 50... Nf4 {[%clk 0:00:07.4]} 51. Rc2 {[%clk 0:00:18.9]}
51... Re2 {[%clk 0:00:06.7]} 52. Rc7+ {[%clk 0:00:16.9]} 52... Kh6 {[%clk
0:00:06.2]} 53. Rc2 {[%clk 0:00:13.5]} 53... Rxc2 {[%clk 0:00:06.1]} 54. Bxc2
{[%clk 0:00:14.4]} 54... Kg7 {[%clk 0:00:06.2]} 55. Bb3 {[%clk 0:00:14.6]} 55...
Kf8 {[%clk 0:00:06.3]} 56. Kf2 {[%clk 0:00:14.8]} 56... Ke7 {[%clk 0:00:07.1]}
57. Ke3 {[%clk 0:00:15.4]} 57... Kd6 {[%clk 0:00:07.8]} 58. Ke4 {[%clk
0:00:15.9]} 58... Ne2 {[%clk 0:00:05.8]} 59. Kf5 {[%clk 0:00:15.6]} 59... Ke7
{[%clk 0:00:05.6]} 60. Ke4 {[%clk 0:00:15.9]} 60... Kd6 {[%clk 0:00:05.4]} 61.
Ke3 {[%clk 0:00:16.1]} 61... Nf4 {[%clk 0:00:05]} 62. Bf7 {[%clk 0:00:16.3]}
62... Ng2+ {[%clk 0:00:04.5]} 63. Ke4 {[%clk 0:00:16.6]} 63... Nf4 {[%clk
0:00:05.4]} 64. Kf5 {[%clk 0:00:15.7]} 64... Ke7 {[%clk 0:00:05.6]} 65. Bb3
{[%clk 0:00:12.7]} 65... Ne2 {[%clk 0:00:05.2]} 66. Ke4 {[%clk 0:00:12.3]} 66...
Nf4 {[%clk 0:00:05.5]} 67. Kf5 {[%clk 0:00:12.5]} 67... Ne2 {[%clk 0:00:05.7]}
1/2-1/2

[Event "Late-Titled-Tuesday-Blitz-January-16-2024"]
[Site "Chess.com"]
[Date "2024.01.16"]
[Round "9"]
[White "AldokhinIvan"]
[Black "wanyaland"]
[Result "1-0"]
[WhiteElo "2590"]
[BlackElo "2474"]
[TimeControl "180+1"]
[EndTime "15:47:22 PST"]
[Termination "AldokhinIvan won on time"]

1. e4 {[%clk 0:02:58.5]} 1... c5 {[%clk 0:02:59.6]} 2. Nf3 {[%clk 0:02:58.9]}
2... e6 {[%clk 0:02:59.7]} 3. d4 {[%clk 0:02:59.8]} 3... cxd4 {[%clk 0:03:00]}
4. Nxd4 {[%clk 0:03:00.7]} 4... Nc6 {[%clk 0:03:00]} 5. Nc3 {[%clk 0:03:01]}
5... Qc7 {[%clk 0:03:00.2]} 6. Nxc6 {[%clk 0:02:59.7]} 6... bxc6 {[%clk
0:02:59.7]} 7. Bd3 {[%clk 0:03:00.6]} 7... d5 {[%clk 0:02:59.6]} 8. Qe2 {[%clk
0:02:59]} 8... Nf6 {[%clk 0:02:58.9]} 9. Bg5 {[%clk 0:02:58.4]} 9... Be7 {[%clk
0:02:52.1]} 10. O-O {[%clk 0:02:57.4]} 10... O-O {[%clk 0:02:47.9]} 11. e5
{[%clk 0:02:57.1]} 11... Ne8 {[%clk 0:02:44.3]} 12. Bf4 {[%clk 0:02:51.3]} 12...
Rb8 {[%clk 0:02:36.8]} 13. b3 {[%clk 0:02:51]} 13... f6 {[%clk 0:02:15.5]} 14.
exf6 {[%clk 0:02:17.8]} 14... Qxf4 {[%clk 0:02:10.5]} 15. fxe7 {[%clk
0:02:18.7]} 15... Rf7 {[%clk 0:02:03.6]} 16. Rae1 {[%clk 0:01:59.5]} 16... Rxe7
{[%clk 0:01:58.8]} 17. g3 {[%clk 0:01:59.6]} 17... Qf6 {[%clk 0:01:55.7]} 18.
Qe5 {[%clk 0:01:55.8]} 18... Qxe5 {[%clk 0:01:54.9]} 19. Rxe5 {[%clk 0:01:56.5]}
19... Nf6 {[%clk 0:01:55.2]} 20. Rfe1 {[%clk 0:01:53.1]} 20... g6 {[%clk
0:01:53.5]} 21. Na4 {[%clk 0:01:47.8]} 21... Kf7 {[%clk 0:01:40.4]} 22. Nc5
{[%clk 0:01:42.1]} 22... Bd7 {[%clk 0:01:24.4]} 23. Bf1 {[%clk 0:01:40.5]} 23...
Rbe8 {[%clk 0:01:18.5]} 24. Bh3 {[%clk 0:01:40.3]} 24... Bc8 {[%clk 0:01:18.5]}
25. f4 {[%clk 0:01:37.1]} 25... a5 {[%clk 0:01:09.4]} 26. c3 {[%clk 0:01:36.1]}
26... Ng8 {[%clk 0:01:07.5]} 27. b4 {[%clk 0:01:30.5]} 27... axb4 {[%clk
0:01:06.1]} 28. cxb4 {[%clk 0:01:31.4]} 28... Kf6 {[%clk 0:01:05.7]} 29. a4
{[%clk 0:01:27.3]} 29... Nh6 {[%clk 0:01:04.6]} 30. g4 {[%clk 0:01:27.4]} 30...
Nf7 {[%clk 0:01:03.4]} 31. g5+ {[%clk 0:01:23.9]} 31... Kg7 {[%clk 0:01:03.4]}
32. Nxe6+ {[%clk 0:01:22.9]} 32... Kg8 {[%clk 0:00:51.1]} 33. R5e2 {[%clk
0:01:06.2]} 33... Nd8 {[%clk 0:00:48.2]} 34. Nxd8 {[%clk 0:01:02]} 34... Rxe2
{[%clk 0:00:44.4]} 35. Rxe2 {[%clk 0:01:02.2]} 35... Rxd8 {[%clk 0:00:19.4]} 36.
Bxc8 {[%clk 0:01:01.7]} 36... Rxc8 {[%clk 0:00:20]} 37. Kf2 {[%clk 0:01:02.1]}
37... Ra8 {[%clk 0:00:18.6]} 38. Ra2 {[%clk 0:00:55.1]} 38... Kf7 {[%clk
0:00:16.9]} 39. Ke3 {[%clk 0:00:55.6]} 39... Ke6 {[%clk 0:00:17]} 40. Kd4 {[%clk
0:00:56.1]} 40... Kd6 {[%clk 0:00:17.2]} 41. a5 {[%clk 0:00:56]} 41... Ra6
{[%clk 0:00:17.3]} 42. Re2 {[%clk 0:00:50.5]} 42... c5+ {[%clk 0:00:14.2]} 43.
bxc5+ {[%clk 0:00:49.3]} 43... Kd7 {[%clk 0:00:14.5]} 44. Kxd5 {[%clk
0:00:44.9]} 44... Rxa5 {[%clk 0:00:14.8]} 45. Re4 {[%clk 0:00:44]} 45... Kd8
{[%clk 0:00:12.7]} 46. Kd6 {[%clk 0:00:43.7]} 46... Ra1 {[%clk 0:00:11.1]} 47.
c6 {[%clk 0:00:33.9]} 47... Rd1+ {[%clk 0:00:10.5]} 48. Ke6 {[%clk 0:00:34.2]}
48... Kc7 {[%clk 0:00:09.4]} 49. Kf6 {[%clk 0:00:23]} 49... Kxc6 {[%clk
0:00:07.8]} 50. Re7 {[%clk 0:00:23.1]} 50... Rd6+ {[%clk 0:00:06.9]} 51. Re6
{[%clk 0:00:23.3]} 51... Kd5 {[%clk 0:00:05.6]} 52. Rxd6+ {[%clk 0:00:23.3]}
52... Kxd6 {[%clk 0:00:06.5]} 53. Kg7 {[%clk 0:00:21.5]} 53... Ke6 {[%clk
0:00:05.7]} 54. Kxh7 {[%clk 0:00:21.6]} 54... Kf5 {[%clk 0:00:06.6]} 55. h4
{[%clk 0:00:20.3]} 1-0